[Event "FIDE WCCC Open-12 2024"]
[Site "Montesilvano"]
[Date "2024.11.19"]
[Round "5.41"]
[White "Yerzhanuly Yernur"]
[Black "Miransh Vyas"]
[Result "1-0"]
[ECO "D35"]
[WhiteElo "1917"]
[BlackElo "1705"]
[Annotator "RC"]
[PlyCount "219"]
[EventDate "2024.11.18"]
[EventType "swiss"]
[EventCountry "ITA"]
[SourceTitle "playchess.com"]
[Source "ChessBase"]
[SourceQuality "1"]
[TimeControl "5400+30"]

1. d4 {[%emt 0:00:03]} d5 {[%emt 0:00:37]} 2. c4 {[%emt 0:00:18]} e6 {[%emt 0:00:06]} 3. cxd5 {[%emt 0:00:06]} exd5 {[%emt 0:00:13]} 4. Nc3 {[%emt 0:00:03]} Nf6 {[%emt 0:00:07]} 5. Bg5 {[%emt 0:00:06]} c6 {[%emt 0:00:11]} 6. e3 {[%emt 0:00:04]} Bd6 {[%emt 0:00:07]} 7. Bd3 {[%emt 0:00:11]} O-O {[%emt 0:00:16]} 8. Nge2 {[%emt 0:00:19]} Re8 {[%emt 0:01:29]} 9. Qc2 {[%emt 0:03:23]} h6 {[%emt 0:00:09]} 10. Bh4 {[%emt 0:00:02]} a5 {[%emt 0:00:10]} 11. h3 {[%emt 0:07:51]} Na6 {[%emt 0:00:33]} 12. a3 {[%emt 0:02:21]} Nc7 {[%emt 0:01:43]} 13. O-O {[%emt 0:16:37]} Ne6 {[%emt 0:02:10]} 14. Rad1 {[%emt 0:01:51]} Ng5 {[%emt 0:11:29]} 15. f4 {[%emt 0:17:56]} Ne6 {[%emt 0:08:09]} 16. g4 {[%emt 0:00:25]} Be7 {[%emt 0:18:28]} 17. Rf3 {[%emt 0:07:43]} b5 {[%emt 0:10:12]} 18. Rdf1 {[%emt 0:07:38]} b4 {[%emt 0:08:04]} 19. Na4 {[%emt 0:09:49]} Ne4 {[%emt 0:05:46]} 20. Bxe7 {[%emt 0:01:37]} Qxe7 {[%emt 0:00:56]} 21. Ng3 {[%emt 0:07:57]} Ba6 {[%emt 0:07:48]} 22. Bxa6 {[%emt 0:07:47]} Nxg3 {[%emt 0:00:36]} 23. Rxg3 {[%emt 0:00:05]} Rxa6 {[%emt 0:00:09]} 24. g5 {[%emt 0:02:01]} hxg5 {[%emt 0:01:44]} 25. f5 {[%emt 0:00:06]} Nf8 {[%emt 0:01:53]} 26. h4 {[%emt 0:00:47]} Nh7 {[%emt 0:02:11]} 27. hxg5 {[%emt 0:01:08]} Nxg5 {[%emt 0:03:56]} 28. f6 {[%emt 0:00:06]} gxf6 {[%emt 0:01:32]} 29. Nc5 {[%emt 0:01:10]} Raa8 {[%emt 0:00:43]} 30. Qf5 {[%emt 0:00:58]} Kg7 {[%emt 0:00:59]} 31. Nd7 {[%emt 0:01:30]} Qe6 {[%emt 0:01:42]} 32. Qxf6+ {[%emt 0:00:14]} Qxf6 {[%emt 0:00:23]} 33. Rxf6 {[%emt 0:00:07]} Re6 {[%emt 0:00:56]} 34. Rxg5+ {[%emt 0:00:06]} Kh7 {[%emt 0:00:17]} 35. Rxf7+ {[%emt 0:00:15]} Kh6 {[%emt 0:00:06]} 36. Rfg7 {[%emt 0:00:15]} Ra7 {[%emt 0:01:12]} 37. Nc5 {[%emt 0:01:36]} Rxg7 {[%emt 0:00:17]} 38. Rxg7 {[%emt 0:00:02]} bxa3 {[%emt 0:01:49]} 39. bxa3 {[%emt 0:00:40]} Rxe3 {[%emt 0:00:12]} 40. Rc7 {[%emt 0:00:07]} Rxa3 {[%emt 0:00:40]} 41. Rxc6+ {[%emt 0:00:13]} Kg5 {[%emt 0:00:15]} 42. Rd6 {[%emt 0:00:59]} Kf4 {[%emt 0:00:20]} 43. Rxd5 {[%emt 0:00:10]} Ra2 {[%emt 0:00:45]} 44. Ne6+ {[%emt 0:01:16]} Ke4 {[%emt 0:00:16]} 45. Re5+ {[%emt 0:00:08]} Kf3 {[%emt 0:00:47]} 46. Re1 {[%emt 0:03:08]} a4 {[%emt 0:01:11]} 47. d5 {[%emt 0:01:22]} Rd2 {[%emt 0:00:35]} 48. Ng5+ {[%emt 0:00:52]} Kg4 {[%emt 0:00:32]} 49. Ne4 {[%emt 0:00:05]} Rd4 {[%emt 0:01:05]} 50. Kf2 {[%emt 0:00:41]} Kf4 {[%emt 0:01:01]} 51. Nc3 {[%emt 0:00:21]} Rd2+ {[%emt 0:01:03]} 52. Re2 {[%emt 0:00:06]} Rd3 {[%emt 0:02:12]} 53. Rc2 {[%emt 0:00:07]} a3 {[%emt 0:00:41]} 54. Ke2 {[%emt 0:00:28]} a2 {[%emt 0:01:15]} 55. Nxa2 {[%emt 0:01:24]} Rxd5 {[%emt 0:00:12]} 56. Rc4+ {[%emt 0:00:16]} Ke5 {[%emt 0:00:58]} 57. Nc3 {[%emt 0:00:10]} Rd4 {[%emt 0:00:25]} 58. Rc5+ {[%emt 0:00:02]} Kd6 {[%emt 0:00:20]} 59. Rh5 {[%emt 0:00:16]} Rg4 {[%emt 0:00:20]} 60. Kd3 {[%emt 0:00:12]} Rg3+ {[%emt 0:00:22]} 61. Kd4 {[%emt 0:00:31]} Rg4+ {[%emt 0:01:08]} 62. Ne4+ {[%emt 0:00:25]} Ke6 {[%emt 0:00:10]} 63. Rh6+ {[%emt 0:00:15]} Kf7 {[%emt 0:00:19]} 64. Ke5 {[%emt 0:00:23]} Ke7 {[%emt 0:00:48]} 65. Rh7+ {[%emt 0:00:22]} Kf8 {[%emt 0:01:12]} 66. Nf6 {[%emt 0:00:42]} Rg1 {[%emt 0:00:30]} 67. Kd6 {[%emt 0:01:13]} Rd1+ {[%emt 0:00:29]} 68. Nd5 {[%emt 0:00:34]} Kg8 {[%emt 0:00:15]} 69. Re7 {[%emt 0:00:34]} Kf8 {[%emt 0:00:27]} 70. Re5 {[%emt 0:00:34]} Kf7 {[%emt 0:00:33]} 71. Rf5+ {[%emt 0:00:14]} Kg6 {[%emt 0:00:15]} 72. Rf2 {[%emt 0:00:12]} Kg5 {[%emt 0:00:16]} 73. Ke5 {[%emt 0:00:23]} Re1+ {[%emt 0:00:16]} 74. Kd4 {[%emt 0:00:14]} Rd1+ {[%emt 0:00:17]} 75. Ke4 {[%emt 0:00:06]} Re1+ {[%emt 0:00:09]} 76. Ne3 {[%emt 0:00:24]} Ra1 {[%emt 0:00:25]} 77. Ke5 {[%emt 0:00:07]} Ra5+ {[%emt 0:00:22]} 78. Nd5 {[%emt 0:00:01]} Kg4 {[%emt 0:00:19]} 79. Ke4 {[%emt 0:00:46]} Ra4+ {[%emt 0:00:28]} 80. Kd3 {[%emt 0:00:11]} Ra3+ {[%emt 0:00:11]} 81. Nc3 {[%emt 0:00:01]} Ra8 {[%emt 0:00:15]} 82. Ke3 {[%emt 0:00:19]} Ra3 {[%emt 0:00:10]} 83. Kd4 {[%emt 0:00:48]} Ra8 {[%emt 0:01:04]} 84. Ke4 {[%emt 0:00:16]} Re8+ {[%emt 0:00:09]} 85. Kd4 {[%emt 0:00:06]} Kg3 {[%emt 0:00:14]} 86. Rf7 {[%emt 0:00:07]} Rd8+ {[%emt 0:00:15]} 87. Ke3 {[%emt 0:00:07]} Re8+ {[%emt 0:00:47]} 88. Ne4+ {[%emt 0:00:05]} Kg4 {[%emt 0:00:07]} 89. Rf4+ {[%emt 0:00:48]} Kh5 {[%emt 0:00:19]} 90. Kf3 {[%emt 0:00:33]} Ra8 {[%emt 0:00:19]} 91. Rg4 {[%emt 0:00:10]} Rf8+ {[%emt 0:00:53]} 92. Kg3 {[%emt 0:00:07]} Rf1 {[%emt 0:00:46]} 93. Rg5+ {[%emt 0:02:28]} Kh6 {[%emt 0:00:14]} 94. Ra5 {[%emt 0:00:07]} Kg6 {[%emt 0:00:18]} 95. Ra6+ {[%emt 0:00:10]} Kf5 {[%emt 0:00:19]} 96. Rf6+ {[%emt 0:00:05]} Kxe4 {[%emt 0:00:10]} 97. Rxf1 {[%emt 0:00:05]} Kd3 {[%emt 0:00:08]} 98. Kf3 {[%emt 0:00:06]} Kd2 {[%emt 0:00:04]} 99. Ra1 {[%emt 0:00:12]} Kc2 {[%emt 0:00:05]} 100. Ke3 {[%emt 0:00:06]} Kb2 {[%emt 0:00:04]} 101. Ra8 {[%emt 0:00:14]} Kc3 {[%emt 0:00:06]} 102. Rc8+ {[%emt 0:00:11]} Kb4 {[%emt 0:00:03]} 103. Kd4 {[%emt 0:00:08]} Kb5 {[%emt 0:00:04]} 104. Kd5 {[%emt 0:00:25]} Kb6 {[%emt 0:00:03]} 105. Kd6 {[%emt 0:00:14]} Kb7 {[%emt 0:00:03]} 106. Rc4 {[%emt 0:00:08]} Kb8 {[%emt 0:00:07]} 107. Kc6 {[%emt 0:00:10]} Kc8 {[%emt 0:00:05]} 108. Rd4 {[%emt 0:00:16]} Kb8 {[%emt 0:00:03]} 109. Ra4 {[%emt 0:00:11]} Kc8 {[%emt 0:00:03]} 110. Ra8# {[%emt 0:00:08]} 1-0

[Event "FIDE WCCC Open-12 2024"]
[Site "Montesilvano"]
[Date "2024.11.19"]
[Round "5.42"]
[White "Park, Onyoo"]
[Black "Hallmundarson, Birkir"]
[Result "0-1"]
[ECO "D02"]
[WhiteElo "1710"]
[BlackElo "1914"]
[Annotator "NA RC"]
[PlyCount "38"]
[EventDate "2024.11.18"]
[EventType "swiss"]
[EventCountry "ITA"]
[SourceTitle "playchess.com"]
[Source "ChessBase"]
[SourceQuality "1"]
[TimeControl "5400+30"]

1. d4 {[%emt 0:00:50]} Nf6 {[%emt 0:00:04]} 2. Bf4 {[%emt 0:00:06]} e6 {[%emt 0:00:05]} 3. e3 {[%emt 0:00:12]} d5 {[%emt 0:00:06]} 4. Nf3 {[%emt 0:00:19]} c5 {[%emt 0:00:07]} 5. c3 {[%emt 0:00:16]} Nc6 {[%emt 0:00:04]} 6. Nbd2 {[%emt 0:00:10]} Bd6 {[%emt 0:00:12]} 7. Bg3 {[%emt 0:00:14]} O-O {[%emt 0:00:08]} 8. Bd3 {[%emt 0:00:09]} cxd4 {[%emt 0:01:38]} 9. exd4 {[%emt 0:01:31]} Qc7 {[%emt 0:00:08]} 10. Qe2 {[%emt 0:09:33]} a6 {[%emt 0:09:40]} 11. a4 {[%emt 0:11:43]} Bxg3 {[%emt 0:08:27]} 12. hxg3 {[%emt 0:00:10]} h6 {[%emt 0:05:03]} 13. Rh4 {[%emt 0:26:20]} Nd7 {[%emt 0:27:59]} 14. g4 {[%emt 0:19:00]} e5 {[%emt 0:00:15]} 15. dxe5 {[%emt 0:06:24]} Ndxe5 {[%emt 0:02:35]} 16. Nxe5 {[%emt 0:08:38]} Nxe5 {[%emt 0:00:36]} 17. g5 {[%emt 0:01:52]} Qe7 {[%emt 0:01:21]} 18. O-O-O {[%emt 0:05:54]} Qxg5 {[%emt 0:00:13]} 19. Rd4 {[%emt 0:01:11]} Nc6 {[%emt 0:00:47]} 0-1

[Event "FIDE WCCC Open-12 2024"]
[Site "Montesilvano"]
[Date "2024.11.19"]
[Round "5.43"]
[White "Chen, Jun-Wei"]
[Black "Leht, Karl Samuel"]
[Result "1/2-1/2"]
[ECO "B15"]
[WhiteElo "1907"]
[BlackElo "1701"]
[Annotator "RC"]
[PlyCount "143"]
[EventDate "2024.11.18"]
[EventType "swiss"]
[EventCountry "ITA"]
[SourceTitle "playchess.com"]
[Source "ChessBase"]
[SourceQuality "1"]
[TimeControl "5400+30"]

1. e4 {[%emt 0:00:04]} c6 {[%emt 0:00:03]} 2. d4 {[%emt 0:00:12]} d5 {[%emt 0:00:02]} 3. Nd2 {[%emt 0:00:13]} dxe4 {[%emt 0:00:05]} 4. Nxe4 {[%emt 0:00:13]} Nf6 {[%emt 0:00:08]} 5. Nxf6+ {[%emt 0:00:13]} exf6 {[%emt 0:00:07]} 6. c3 {[%emt 0:00:09]} Bd6 {[%emt 0:00:04]} 7. Bd3 {[%emt 0:00:10]} O-O {[%emt 0:00:08]} 8. Qc2 {[%emt 0:00:07]} h5 {[%emt 0:00:06]} 9. Ne2 {[%emt 0:00:06]} Re8 {[%emt 0:00:08]} 10. O-O {[%emt 0:00:18]} h4 {[%emt 0:00:42]} 11. Nf4 {[%emt 0:00:02]} h3 {[%emt 0:06:21]} 12. g3 {[%emt 0:03:49]} Bxf4 {[%emt 0:11:09]} 13. Bxf4 {[%emt 0:01:34]} g5 {[%emt 0:05:51]} 14. Bd2 {[%emt 0:04:23]} Qd5 {[%emt 0:06:54]} 15. f3 {[%emt 0:00:13]} Be6 {[%emt 0:00:48]} 16. Be4 {[%emt 0:13:50]} Qd7 {[%emt 0:00:54]} 17. Rae1 {[%emt 0:02:58]} Na6 {[%emt 0:02:25]} 18. b4 {[%emt 0:09:52]} Nc7 {[%emt 0:03:15]} 19. Bd3 {[%emt 0:06:29]} a5 {[%emt 0:00:46]} 20. a3 {[%emt 0:03:14]} axb4 {[%emt 0:02:02]} 21. axb4 {[%emt 0:01:06]} Ra2 {[%emt 0:01:54]} 22. Qc1 {[%emt 0:01:04]} Rea8 {[%emt 0:08:20]} 23. Bb1 {[%emt 0:03:13]} Ra1 {[%emt 0:02:50]} 24. Qc2 {[%emt 0:00:54]} f5 {[%emt 0:17:45]} 25. Bxg5 {[%emt 0:03:50]} f6 {[%emt 0:04:23]} 26. Bc1 {[%emt 0:03:55]} Nb5 {[%emt 0:04:17]} 27. Bb2 {[%emt 0:10:04]} Na3 {[%emt 0:05:06]} 28. Bxa3 {[%emt 0:00:17]} R1xa3 {[%emt 0:00:21]} 29. Qe2 {[%emt 0:00:57]} Bf7 {[%emt 0:01:54]} 30. Qd2 {[%emt 0:02:36]} Ba2 {[%emt 0:01:53]} 31. Bd3 {[%emt 0:01:28]} Kg7 {[%emt 0:07:06]} 32. Qf4 {[%emt 0:01:16]} Be6 {[%emt 0:01:12]} 33. Rc1 {[%emt 0:07:06]} Ra2 {[%emt 0:00:54]} 34. Bc2 {[%emt 0:02:13]} Rb2 {[%emt 0:00:36]} 35. Bb1 {[%emt 0:02:08]} Rg2+ {[%emt 0:02:07]} 36. Kh1 {[%emt 0:00:14]} Qd5 {[%emt 0:01:26]} 37. c4 {[%emt 0:01:51]} Qd7 {[%emt 0:00:25]} 38. Rfe1 {[%emt 0:04:40]} Ra3 {[%emt 0:00:52]} 39. Re3 {[%emt 0:05:08]} Ra1 {[%emt 0:00:40]} 40. Ree1 {[%emt 0:00:29]} Ra3 {[%emt 0:00:05]} 41. b5 {[%emt 0:01:31]} Rb3 {[%emt 0:01:26]} 42. Rg1 {[%emt 0:01:29]} Rf2 {[%emt 0:01:17]} 43. Rgf1 {[%emt 0:01:54]} Rbxf3 {[%emt 0:00:33]} 44. Rxf2 {[%emt 0:00:25]} Rxf4 {[%emt 0:00:12]} 45. Rxf4 {[%emt 0:00:07]} cxb5 {[%emt 0:00:14]} 46. Rd1 {[%emt 0:01:28]} bxc4 {[%emt 0:00:42]} 47. d5 {[%emt 0:00:06]} Bxd5+ {[%emt 0:00:37]} 48. Kg1 {[%emt 0:00:03]} Qc6 {[%emt 0:00:42]} 49. Bxf5 {[%emt 0:00:32]} Qc5+ {[%emt 0:01:20]} 50. Rf2 {[%emt 0:00:41]} Bg2 {[%emt 0:00:48]} 51. Rd7+ {[%emt 0:00:22]} Kf8 {[%emt 0:00:27]} 52. Rd8+ {[%emt 0:00:52]} Ke7 {[%emt 0:00:22]} 53. Rd7+ {[%emt 0:01:34]} Ke8 {[%emt 0:00:16]} 54. Rh7 {[%emt 0:02:52]} Qe3 {[%emt 0:01:04]} 55. Bxh3 {[%emt 0:00:28]} Qe1+ {[%emt 0:00:43]} 56. Kxg2 {[%emt 0:00:02]} Qe4+ {[%emt 0:00:10]} 57. Rf3 {[%emt 0:01:13]} Qxh7 {[%emt 0:00:08]} 58. Rxf6 {[%emt 0:00:11]} Qc2+ {[%emt 0:00:30]} 59. Rf2 {[%emt 0:00:03]} Qe4+ {[%emt 0:00:36]} 60. Kf1 {[%emt 0:00:08]} Qb1+ {[%emt 0:00:14]} 61. Kg2 {[%emt 0:00:07]} c3 {[%emt 0:00:16]} 62. Bf5 {[%emt 0:00:01]} Qd1 {[%emt 0:00:39]} 63. h4 {[%emt 0:01:04]} b5 {[%emt 0:01:21]} 64. g4 {[%emt 0:01:08]} b4 {[%emt 0:00:39]} 65. h5 {[%emt 0:00:23]} b3 {[%emt 0:00:45]} 66. h6 {[%emt 0:00:11]} c2 {[%emt 0:00:49]} 67. h7 {[%emt 0:00:09]} Qd5+ {[%emt 0:00:25]} 68. Kh3 {[%emt 0:00:38]} Qh1+ {[%emt 0:00:36]} 69. Rh2 {[%emt 0:00:02]} Qf3+ {[%emt 0:00:22]} 70. Kh4 {[%emt 0:00:06]} Qc3 {[%emt 0:00:31]} 71. Bxc2 {[%emt 0:00:24]} bxc2 {[%emt 0:00:28]} 72. Rxc2 {[%emt 0:00:06]} 1/2-1/2

[Event "FIDE WCCC Open-12 2024"]
[Site "Montesilvano"]
[Date "2024.11.19"]
[Round "5.44"]
[White "Bundan, Edward"]
[Black "Shirinov, Yashar"]
[Result "0-1"]
[ECO "B01"]
[WhiteElo "1905"]
[BlackElo "1642"]
[Annotator "RC"]
[PlyCount "74"]
[EventDate "2024.11.18"]
[EventType "swiss"]
[EventCountry "ITA"]
[SourceTitle "playchess.com"]
[Source "ChessBase"]
[SourceQuality "1"]
[TimeControl "5400+30"]

1. e4 {[%emt 0:00:02]} d5 {[%emt 0:00:06]} 2. exd5 {[%emt 0:00:08]} Nf6 {[%emt 0:00:07]} 3. d4 {[%emt 0:00:09]} Nxd5 {[%emt 0:00:04]} 4. c4 {[%emt 0:00:11]} Nb6 {[%emt 0:00:05]} 5. Nf3 {[%emt 0:00:36]} g6 {[%emt 0:00:05]} 6. Nc3 {[%emt 0:01:30]} Bg7 {[%emt 0:02:04]} 7. h3 {[%emt 0:00:58]} O-O {[%emt 0:00:25]} 8. Be3 {[%emt 0:02:38]} Nc6 {[%emt 0:01:08]} 9. Qd2 {[%emt 0:14:22]} e5 {[%emt 0:02:01]} 10. d5 {[%emt 0:04:32]} Ne7 {[%emt 0:00:15]} 11. O-O-O {[%emt 0:02:08]} Nf5 {[%emt 0:02:20]} 12. g4 {[%emt 0:02:07]} Nxe3 {[%emt 0:00:38]} 13. fxe3 {[%emt 0:01:54]} f5 {[%emt 0:01:06]} 14. gxf5 {[%emt 0:08:51]} Bxf5 {[%emt 0:00:08]} 15. Be2 {[%emt 0:01:04]} Bh6 {[%emt 0:06:18]} 16. Rdg1 {[%emt 0:11:07]} Qe7 {[%emt 0:03:45]} 17. Rg3 {[%emt 0:10:12]} Qc5 {[%emt 0:15:50]} 18. Nh4 {[%emt 0:11:43]} Nxc4 {[%emt 0:06:44]} 19. Bxc4 {[%emt 0:00:28]} Qxc4 {[%emt 0:00:07]} 20. Nxf5 {[%emt 0:02:15]} Rxf5 {[%emt 0:01:40]} 21. Rg4 {[%emt 0:07:16]} Qc5 {[%emt 0:03:38]} 22. Re1 {[%emt 0:01:21]} Raf8 {[%emt 0:02:54]} 23. Qg2 {[%emt 0:02:54]} Rf3 {[%emt 0:08:07]} 24. Kb1 {[%emt 0:02:58]} Rxe3 {[%emt 0:00:58]} 25. Rg1 {[%emt 0:00:53]} Qb6 {[%emt 0:07:40]} 26. Ne4 {[%emt 0:02:14]} Ref3 {[%emt 0:01:06]} 27. d6 {[%emt 0:01:51]} Qxg1+ {[%emt 0:01:22]} 28. Qxg1 {[%emt 0:00:28]} Rf1+ {[%emt 0:00:04]} 29. Qxf1 {[%emt 0:00:09]} Rxf1+ {[%emt 0:00:04]} 30. Kc2 {[%emt 0:00:10]} cxd6 {[%emt 0:00:38]} 31. Nxd6 {[%emt 0:00:40]} Rf2+ {[%emt 0:00:40]} 32. Kb1 {[%emt 0:00:33]} Bf4 {[%emt 0:00:47]} 33. Nxb7 {[%emt 0:02:37]} e4 {[%emt 0:00:43]} 34. Rg1 {[%emt 0:00:23]} e3 {[%emt 0:00:18]} 35. Re1 {[%emt 0:00:25]} Rd2 {[%emt 0:00:06]} 36. a4 {[%emt 0:01:07]} e2 {[%emt 0:00:05]} 37. Kc1 {[%emt 0:05:10]} Rd1+ {[%emt 0:00:06]} 0-1

[Event "FIDE WCCC Open-12 2024"]
[Site "Montesilvano"]
[Date "2024.11.19"]
[Round "5.46"]
[White "Chia, Yu Zhe Ashton"]
[Black "Ivarlac, Vladislav"]
[Result "1-0"]
[ECO "B12"]
[WhiteElo "2252"]
[BlackElo "1867"]
[Annotator "RC"]
[PlyCount "119"]
[EventDate "2024.11.18"]
[EventType "swiss"]
[EventCountry "ITA"]
[SourceTitle "playchess.com"]
[Source "ChessBase"]
[SourceQuality "1"]
[TimeControl "5400+30"]

1. e4 {[%emt 1:31:00]} c6 {[%emt 0:00:07]} 2. d4 {[%emt 0:00:00]} d5 {[%emt 0:00:06]} 3. f3 {[%emt 0:00:00]} dxe4 {[%emt 0:01:25]} 4. fxe4 {[%emt 0:00:00]} e5 {[%emt 0:01:04]} 5. Nf3 {[%emt 0:00:00]} exd4 {[%emt 0:01:12]} 6. Bc4 {[%emt 0:00:00]} Be7 {[%emt 0:03:09]} 7. O-O {[%emt 0:00:00]} Nf6 {[%emt 1:26:57]} 8. Ng5 {[%emt 0:00:00]} O-O {[%emt 0:00:00]} 9. Nxf7 {[%emt 0:00:00]} Qa5 {[%emt 0:00:00]} 10. Nd6+ {[%emt 0:00:00]} Kh8 {[%emt 0:00:00]} 11. Nxc8 {[%emt 0:00:00]} Rxc8 {[%emt 0:00:00]} 12. Nd2 {[%emt 0:00:00]} b5 {[%emt 0:00:00]} 13. Be6 {[%emt 0:00:00]} Rd8 {[%emt 0:00:00]} 14. e5 {[%emt 0:00:00]} Ng8 {[%emt 0:00:00]} 15. Rf7 {[%emt 0:00:00]} Rf8 {[%emt 0:00:00]} 16. Rxf8 {[%emt 0:00:00]} Bxf8 {[%emt 0:00:00]} 17. Qf3 {[%emt 0:00:00]} Bc5 {[%emt 0:00:00]} 18. Bxg8 {[%emt 0:00:00]} Kxg8 {[%emt 0:00:00]} 19. e6 {[%emt 0:00:00]} Qc7 {[%emt 0:00:00]} 20. Ne4 {[%emt 0:00:00]} Na6 {[%emt 0:00:00]} 21. Bf4 {[%emt 0:00:00]} Qe7 {[%emt 0:00:00]} 22. Nxc5 {[%emt 0:00:00]} Qxc5 {[%emt 0:00:00]} 23. Re1 {[%emt 0:00:00]} Rf8 {[%emt 0:00:00]} 24. e7 {[%emt 0:00:00]} Re8 {[%emt 0:00:00]} 25. Qb3+ {[%emt 0:00:15]} Qc4 {[%emt 0:00:00]} 26. Qxc4+ {[%emt 0:03:34]} bxc4 {[%emt 0:00:00]} 27. Bd6 {[%emt 0:00:07]} Kf7 {[%emt 0:00:00]} 28. Rf1+ {[%emt 0:02:28]} Ke6 {[%emt 0:00:00]} 29. Rf8 {[%emt 0:00:13]} Kd7 {[%emt 0:00:00]} 30. Rxe8 {[%emt 0:00:16]} Kxe8 {[%emt 0:00:00]} 31. Kf2 {[%emt 0:00:36]} c5 {[%emt 0:00:00]} 32. a3 {[%emt 0:01:13]} Kd7 {[%emt 0:00:00]} 33. Ke2 {[%emt 0:00:17]} g6 {[%emt 0:00:00]} 34. Kd2 {[%emt 0:00:24]} h6 {[%emt 0:00:00]} 35. b4 {[%emt 0:01:51]} cxb3 {[%emt 0:00:00]} 36. cxb3 {[%emt 0:00:09]} g5 {[%emt 0:00:00]} 37. g4 {[%emt 0:00:18]} Ke8 {[%emt 0:00:00]} 38. Kd3 {[%emt 0:00:29]} Kd7 {[%emt 0:00:00]} 39. b4 {[%emt 0:00:23]} cxb4 {[%emt 0:00:00]} 40. axb4 {[%emt 0:00:12]} Kxd6 {[%emt 0:00:00]} 41. e8=Q {[%emt 0:07:15]} Nxb4+ {[%emt 0:00:00]} 42. Kxd4 {[%emt 0:00:00]} Nc6+ {[%emt 0:00:01]} 43. Kc3 {[%emt 0:00:00]} Ne7 {[%emt 0:00:12]} 44. Qb8+ {[%emt 0:00:00]} Ke6 {[%emt 0:00:12]} 45. Qxa7 {[%emt 0:00:00]} Kf6 {[%emt 0:00:06]} 46. Qd4+ {[%emt 0:00:00]} Kf7 {[%emt 0:00:20]} 47. Qh8 {[%emt 0:00:00]} Kg6 {[%emt 0:00:10]} 48. Qe8+ {[%emt 0:00:00]} Kf6 {[%emt 0:00:08]} 49. Qf8+ {[%emt 0:00:00]} Ke6 {[%emt 0:00:07]} 50. Qxh6+ {[%emt 0:00:00]} Kd5 {[%emt 0:00:12]} 51. Qxg5+ {[%emt 0:00:00]} Kd6 {[%emt 0:00:09]} 52. Kc2 {[%emt 0:00:00]} Nd5 {[%emt 0:00:05]} 53. h4 {[%emt 0:00:00]} Nb4+ {[%emt 0:00:04]} 54. Kb3 {[%emt 0:00:00]} Nc6 {[%emt 0:00:04]} 55. h5 {[%emt 0:00:00]} Nd4+ {[%emt 0:00:04]} 56. Kc4 {[%emt 0:00:00]} Nc6 {[%emt 0:00:05]} 57. Qf6+ {[%emt 0:00:00]} Kd7 {[%emt 0:00:04]} 58. h6 {[%emt 0:00:00]} Na5+ {[%emt 0:00:08]} 59. Kb5 {[%emt 0:00:00]} Nc6 {[%emt 0:00:04]} 60. Qxc6+ {[%emt 0:00:00]} 1-0

[Event "FIDE WCCC Open-12 2024"]
[Site "Montesilvano"]
[Date "2024.11.19"]
[Round "5.47"]
[White "Kraucenka, Justas"]
[Black "Xia, Jinnan"]
[Result "0-1"]
[ECO "D02"]
[WhiteElo "1650"]
[BlackElo "1850"]
[Annotator "NA RC"]
[PlyCount "114"]
[EventDate "2024.11.18"]
[EventType "swiss"]
[EventCountry "ITA"]
[SourceTitle "playchess.com"]
[Source "ChessBase"]
[SourceQuality "1"]
[TimeControl "5400+30"]

1. d4 {[%emt 0:00:01]} Nf6 {[%emt 0:00:07]} 2. Nf3 {[%emt 0:00:06]} d5 {[%emt 0:00:06]} 3. Bf4 {[%emt 0:00:05]} e6 {[%emt 0:00:06]} 4. e3 {[%emt 0:00:06]} c5 {[%emt 0:00:02]} 5. Nbd2 {[%emt 0:00:05]} Nc6 {[%emt 0:00:04]} 6. c3 {[%emt 0:00:09]} cxd4 {[%emt 0:00:35]} 7. cxd4 {[%emt 0:00:04]} Qb6 {[%emt 0:00:52]} 8. Rb1 {[%emt 0:00:00]} Nh5 {[%emt 0:01:38]} 9. Bg5 {[%emt 0:00:16]} h6 {[%emt 0:04:35]} 10. Bh4 {[%emt 0:00:10]} g5 {[%emt 0:04:53]} 11. Ne5 {[%emt 0:12:01]} Nxe5 {[%emt 0:04:49]} 12. Qxh5 {[%emt 0:00:45]} gxh4 {[%emt 0:01:18]} 13. Qxe5 {[%emt 0:00:06]} Rg8 {[%emt 0:00:11]} 14. Qh5 {[%emt 0:04:51]} Bb4 {[%emt 0:07:02]} 15. Rd1 {[%emt 0:18:05]} Be7 {[%emt 0:00:13]} 16. b3 {[%emt 0:00:29]} Rg6 {[%emt 0:00:32]} 17. g3 {[%emt 0:06:44]} hxg3 {[%emt 0:01:13]} 18. hxg3 {[%emt 0:00:25]} Bf8 {[%emt 0:00:16]} 19. Bd3 {[%emt 0:01:59]} Rg5 {[%emt 0:00:17]} 20. Qf3 {[%emt 0:00:21]} Qa5 {[%emt 0:01:04]} 21. a4 {[%emt 0:00:40]} a6 {[%emt 0:00:46]} 22. Rc1 {[%emt 0:02:45]} Bd7 {[%emt 0:02:26]} 23. Qe2 {[%emt 0:04:21]} e5 {[%emt 0:10:42]} 24. dxe5 {[%emt 0:18:37]} Bg4 {[%emt 0:00:06]} 25. f3 {[%emt 0:00:52]} Bd7 {[%emt 0:00:04]} 26. f4 {[%emt 0:00:40]} Rxg3 {[%emt 0:00:15]} 27. Kf2 {[%emt 0:00:47]} Rg8 {[%emt 0:01:37]} 28. Nf3 {[%emt 0:04:42]} Qb6 {[%emt 0:03:51]} 29. Qc2 {[%emt 0:08:22]} Ba3 {[%emt 0:01:51]} 30. Rcg1 {[%emt 0:05:10]} Ke7 {[%emt 0:20:41]} 31. Bf5 {[%emt 0:03:17]} Bc5 {[%emt 0:02:34]} 32. Re1 {[%emt 0:01:39]} d4 {[%emt 0:07:23]} 33. exd4 {[%emt 0:01:40]} Bxd4+ {[%emt 0:00:04]} 34. Kf1 {[%emt 0:01:31]} Rg3 {[%emt 0:01:31]} 35. Nxd4 {[%emt 0:01:55]} Qxd4 {[%emt 0:00:15]} 36. Qe4 {[%emt 0:00:20]} Qxe4 {[%emt 0:03:12]} 37. Bxe4 {[%emt 0:00:10]} Rxb3 {[%emt 0:00:04]} 38. Rxh6 {[%emt 0:00:25]} Bxa4 {[%emt 0:00:24]} 39. Bd5 {[%emt 0:00:34]} Rb5 {[%emt 0:02:15]} 40. Ba2 {[%emt 0:00:32]} Rb2 {[%emt 0:00:43]} 41. Bd5 {[%emt 0:00:34]} Rg8 {[%emt 0:00:21]} 42. Bc4 {[%emt 0:01:53]} Rb4 {[%emt 0:01:00]} 43. Bxa6 {[%emt 0:03:03]} Rxf4+ {[%emt 0:00:12]} 44. Ke2 {[%emt 0:00:07]} bxa6 {[%emt 0:00:05]} 45. Ke3 {[%emt 0:00:22]} Rf5 {[%emt 0:00:26]} 46. Ke4 {[%emt 0:00:28]} Bc2+ {[%emt 0:00:03]} 47. Kd4 {[%emt 0:00:11]} Rf4+ {[%emt 0:00:20]} 48. Kc3 {[%emt 0:00:18]} Rc8+ {[%emt 0:00:02]} 49. Kb2 {[%emt 0:00:19]} Rb4+ {[%emt 0:01:22]} 50. Ka3 {[%emt 0:00:12]} Ra4+ {[%emt 0:00:03]} 51. Kb2 {[%emt 0:00:08]} Bf5 {[%emt 0:00:05]} 52. Rb6 {[%emt 0:01:01]} Ra5 {[%emt 0:00:20]} 53. Rb7+ {[%emt 0:00:46]} Ke8 {[%emt 0:00:05]} 54. Ra7 {[%emt 0:01:33]} Rb5+ {[%emt 0:00:23]} 55. Ka3 {[%emt 0:00:14]} Rc3+ {[%emt 0:00:04]} 56. Ka2 {[%emt 0:00:31]} Be6+ {[%emt 0:00:03]} 57. Ka1 {[%emt 0:00:08]} Ra3# {[%emt 0:00:03]} 0-1